[Event "7th Iberoamerican-ch 2019"]
[Site "Linares"]
[Date "2019.08.14"]
[Round "5.14"]
[White "Salinas Herrera, Pablo"]
[Black "Perez Garcia, Alejandro"]
[Result "1-0"]
[ECO "D70"]
[WhiteElo "2506"]
[BlackElo "2347"]
[Annotator "ChessBase"]
[PlyCount "105"]
[EventDate "2019.08.10"]
[EventType "swiss"]
[EventCountry "ESP"]
[SourceTitle "playchess.com"]
[Source "ChessBase"]
[SourceQuality "1"]
[TimeControl "5400+30"]

1. Nf3 {[%emt 0:01:19]} d5 {[%emt 0:00:06]} 2. d4 {[%emt 0:00:06]} Nf6 {[%emt 0:00:16]} 3. c4 {[%emt 0:00:04]} c6 {[%emt 0:00:37]} 4. Nbd2 {[%emt 0:00:05]} Bf5 {[%emt 0:01:33]} 5. Nh4 {[%emt 0:00:08]} Be6 {[%emt 0:00:04]} 6. e3 {[%emt 0:02:42]} g6 {[%emt 0:00:04]} 7. b3 {[%emt 0:02:45]} Bg7 {[%emt 0:01:20]} 8. Bb2 {[%emt 0:00:12]} O-O {[%emt 0:02:09]} 9. Bd3 {[%emt 0:03:56]} c5 {[%emt 0:02:48]} 10. dxc5 {[%emt 0:08:18]} Na6 {[%emt 0:08:08]} 11. O-O {[%emt 0:22:50]} Nxc5 {[%emt 0:00:54]} 12. Be2 {[%emt 0:00:16]} dxc4 {[%emt 0:09:33]} 13. Nxc4 {[%emt 0:00:53]} Bxc4 {[%emt 0:05:03]} 14. Bxc4 {[%emt 0:00:20]} Nfe4 {[%emt 0:01:53]} 15. Bxg7 {[%emt 0:03:34]} Kxg7 {[%emt 0:00:17]} 16. Qd4+ {[%emt 0:02:10]} Qxd4 {[%emt 0:10:39]} 17. exd4 {[%emt 0:00:07]} Nd7 {[%emt 0:05:04]} 18. Rfe1 {[%emt 0:00:27]} Ndf6 {[%emt 0:00:44]} 19. Bd3 {[%emt 0:01:17]} Ng5 {[%emt 0:00:19]} 20. Rxe7 {[%emt 0:00:39]} Rad8 {[%emt 0:02:51]} 21. f4 {[%emt 0:09:29]} Nd5 {[%emt 0:05:09]} 22. Rxb7 {[%emt 0:07:11]} Nxf4 {[%emt 0:00:11]} 23. Bc4 {[%emt 0:00:56]} Rxd4 {[%emt 0:00:27]} 24. Rf1 {[%emt 0:00:15]} Nfh3+ {[%emt 0:08:43]} 25. gxh3 {[%emt 0:00:11]} Rxh4 {[%emt 0:00:08]} 26. Rxa7 {[%emt 0:01:16]} Nxh3+ {[%emt 0:02:17]} 27. Kh1 {[%emt 0:00:07]} Ng5 {[%emt 0:04:26]} 28. Rd7 {[%emt 0:00:58]} Re8 {[%emt 0:06:23]} 29. a4 {[%emt 0:06:40]} Re3 {[%emt 0:08:24]} 30. a5 {[%emt 0:00:05]} Rc3 {[%emt 0:08:38]} 31. Rd2 {[%emt 0:06:19]} Ne4 {[%emt 0:03:50]} 32. Rxf7+ {[%emt 0:00:51]} Kh6 {[%emt 0:00:04]} 33. Ra2 {[%emt 0:01:52]} Nd6 {[%emt 0:00:59]} 34. Rf1 {[%emt 0:00:16]} Nxc4 {[%emt 0:00:19]} 35. bxc4 {[%emt 0:00:03]} Rhxc4 {[%emt 0:01:00]} 36. a6 {[%emt 0:00:05]} Rc1 {[%emt 0:01:43]} 37. Rxc1 {[%emt 0:00:23]} Rxc1+ {[%emt 0:00:09]} 38. Kg2 {[%emt 0:00:02]} Rc8 {[%emt 0:00:07]} 39. Ra5 {[%emt 0:00:42]} g5 {[%emt 0:00:34]} 40. a7 {[%emt 0:01:24]} Ra8 {[%emt 0:00:03]} 41. Ra6+ {[%emt 0:00:05]} Kg7 {[%emt 0:00:31]} 42. Kf3 {[%emt 0:00:06]} h5 {[%emt 0:02:01]} 43. Ke4 {[%emt 0:00:06]} g4 {[%emt 0:00:24]} 44. Kf5 {[%emt 0:00:30]} Kf7 {[%emt 0:00:35]} 45. Kg5 {[%emt 0:00:09]} Ke7 {[%emt 0:00:24]} 46. Kxh5 {[%emt 0:00:06]} Kd7 {[%emt 0:00:18]} 47. Kxg4 {[%emt 0:00:06]} Kc7 {[%emt 0:00:35]} 48. h4 {[%emt 0:00:30]} Kb7 {[%emt 0:00:07]} 49. Rg6 {[%emt 0:00:18]} Kxa7 {[%emt 0:00:12]} 50. h5 {[%emt 0:00:10]} Re8 {[%emt 0:00:42]} 51. h6 {[%emt 0:00:03]} Re1 {[%emt 0:00:09]} 52. Kg5 {[%emt 0:00:08]} Rh1 {[%emt 0:00:21]} 53. Kf6 {[%emt 0:00:10]} 1-0

[Event "7th Iberoamerican-ch 2019"]
[Site "Linares"]
[Date "2019.08.14"]
[Round "5.15"]
[White "Aizpurua, Patrick"]
[Black "Matamoros Franco, Carlos S."]
[Result "0-1"]
[ECO "A10"]
[WhiteElo "2261"]
[BlackElo "2498"]
[Annotator "ChessBase"]
[PlyCount "66"]
[EventDate "2019.08.10"]
[EventType "swiss"]
[EventCountry "ESP"]
[SourceTitle "playchess.com"]
[Source "ChessBase"]
[SourceQuality "1"]
[TimeControl "5400+30"]

1. c4 {[%emt 0:00:00]} g6 {[%emt 0:00:00]} 2. g3 {[%emt 0:00:00]} Bg7 {[%emt 0:00:00]} 3. Bg2 {[%emt 0:00:00]} c5 {[%emt 0:00:03]} 4. e3 {[%emt 0:00:02]} Nc6 {[%emt 0:14:53]} 5. Ne2 {[%emt 0:00:11]} e5 {[%emt 0:00:04]} 6. Nbc3 {[%emt 0:00:20]} Nge7 {[%emt 0:00:05]} 7. O-O {[%emt 0:14:59]} O-O {[%emt 0:01:42]} 8. a3 {[%emt 0:02:01]} a5 {[%emt 0:00:45]} 9. b3 {[%emt 0:09:16]} d6 {[%emt 0:02:16]} 10. Bb2 {[%emt 0:01:08]} Rb8 {[%emt 0:00:26]} 11. Nb5 {[%emt 0:08:11]} d5 {[%emt 0:04:56]} 12. cxd5 {[%emt 0:00:11]} Nxd5 {[%emt 0:00:04]} 13. Rc1 {[%emt 0:00:10]} b6 {[%emt 0:02:11]} 14. d4 {[%emt 0:15:05]} exd4 {[%emt 0:00:34]} 15. Bxd4 {[%emt 0:08:12]} Nxd4 {[%emt 0:16:15]} 16. exd4 {[%emt 0:00:09]} Be6 {[%emt 0:08:56]} 17. Qd3 {[%emt 0:14:39]} Qd7 {[%emt 0:03:20]} 18. dxc5 {[%emt 0:01:45]} bxc5 {[%emt 0:00:05]} 19. Rfd1 {[%emt 0:13:42]} Rfd8 {[%emt 0:18:52]} 20. Bxd5 {[%emt 0:08:46]} Qxd5 {[%emt 0:05:02]} 21. Qxd5 {[%emt 0:00:30]} Bxd5 {[%emt 0:00:10]} 22. Rxc5 {[%emt 0:00:36]} Bxb3 {[%emt 0:03:19]} 23. Rxd8+ {[%emt 0:00:16]} Rxd8 {[%emt 0:00:05]} 24. Nbc3 {[%emt 0:00:10]} a4 {[%emt 0:03:26]} 25. Ra5 {[%emt 0:00:15]} Re8 {[%emt 0:00:50]} 26. f3 {[%emt 0:01:26]} Bh6 {[%emt 0:10:43]} 27. f4 {[%emt 0:00:48]} Bf8 {[%emt 0:00:39]} 28. Kf2 {[%emt 0:00:23]} Bxa3 {[%emt 0:00:12]} 29. Nxa4 {[%emt 0:00:20]} Bb4 {[%emt 0:00:01]} 30. Ra7 {[%emt 0:00:12]} Bd2 {[%emt 0:00:05]} 31. Ra6 {[%emt 0:00:36]} Bc4 {[%emt 0:00:13]} 32. Ra8 {[%emt 0:00:44]} Be3+ {[%emt 0:00:15]} 33. Kf3 {[%emt 0:00:10]} Bd5+ {[%emt 0:00:01]} 0-1

[Event "7th Iberoamerican-ch 2019"]
[Site "Linares"]
[Date "2019.08.14"]
[Round "5.16"]
[White "Del Rio De Angelis, Salvador G."]
[Black "Lianes Garcia, Marcos"]
[Result "1-0"]
[ECO "E49"]
[WhiteElo "2472"]
[BlackElo "2347"]
[Annotator "ChessBase"]
[PlyCount "89"]
[EventDate "2019.08.10"]
[EventType "swiss"]
[EventCountry "ESP"]
[SourceTitle "playchess.com"]
[Source "ChessBase"]
[SourceQuality "1"]
[TimeControl "5400+30"]

1. d4 {[%emt 0:00:00]} Nf6 {[%emt 0:00:12]} 2. c4 {[%emt 0:00:00]} e6 {[%emt 0:00:43]} 3. Nc3 {[%emt 0:00:22]} Bb4 {[%emt 0:00:59]} 4. e3 {[%emt 0:00:11]} O-O {[%emt 0:01:21]} 5. Bd3 {[%emt 0:00:09]} d5 {[%emt 0:00:20]} 6. a3 {[%emt 0:00:23]} Bxc3+ {[%emt 0:04:38]} 7. bxc3 {[%emt 0:00:11]} c5 {[%emt 0:01:15]} 8. cxd5 {[%emt 0:00:31]} exd5 {[%emt 0:00:57]} 9. Ne2 {[%emt 0:00:09]} b6 {[%emt 0:11:57]} 10. O-O {[%emt 0:00:28]} Ba6 {[%emt 0:06:59]} 11. f3 {[%emt 0:01:19]} Re8 {[%emt 0:05:02]} 12. Ng3 {[%emt 0:00:41]} Bxd3 {[%emt 0:22:03]} 13. Qxd3 {[%emt 0:00:16]} Nc6 {[%emt 0:00:02]} 14. Bb2 {[%emt 0:00:29]} Qe7 {[%emt 0:13:11]} 15. Rae1 {[%emt 0:02:36]} Rad8 {[%emt 0:00:54]} 16. e4 {[%emt 0:04:33]} dxe4 {[%emt 0:00:22]} 17. fxe4 {[%emt 0:00:07]} Ne5 {[%emt 0:02:07]} 18. Qe2 {[%emt 0:03:34]} Ng6 {[%emt 0:06:14]} 19. d5 {[%emt 0:04:54]} c4 {[%emt 0:03:46]} 20. Qxc4 {[%emt 0:03:13]} Ne5 {[%emt 0:01:54]} 21. Qd4 {[%emt 0:10:11]} Qc5 {[%emt 0:00:41]} 22. Qxc5 {[%emt 0:04:57]} bxc5 {[%emt 0:00:31]} 23. c4 {[%emt 0:00:14]} Nfd7 {[%emt 0:03:07]} 24. Bxe5 {[%emt 0:07:02]} Nxe5 {[%emt 0:00:10]} 25. Rb1 {[%emt 0:00:14]} Rb8 {[%emt 0:02:35]} 26. Rb5 {[%emt 0:01:02]} Nxc4 {[%emt 0:06:11]} 27. Rxc5 {[%emt 0:00:07]} Nxa3 {[%emt 0:03:20]} 28. Rc7 {[%emt 0:02:03]} Rf8 {[%emt 0:00:16]} 29. Rxa7 {[%emt 0:00:14]} Nb5 {[%emt 0:00:10]} 30. Re7 {[%emt 0:00:26]} Nc3 {[%emt 0:01:33]} 31. h3 {[%emt 0:03:45]} Rb2 {[%emt 0:00:32]} 32. Kh2 {[%emt 0:01:23]} Rd2 {[%emt 0:00:43]} 33. Rf3 {[%emt 0:00:43]} Nb5 {[%emt 0:00:09]} 34. Nf1 {[%emt 0:01:44]} Rd4 {[%emt 0:00:12]} 35. Rb3 {[%emt 0:02:29]} Nd6 {[%emt 0:00:16]} 36. Ng3 {[%emt 0:00:07]} Rd2 {[%emt 0:01:47]} 37. Rb4 {[%emt 0:01:37]} g6 {[%emt 0:00:47]} 38. Rd7 {[%emt 0:01:45]} Ne8 {[%emt 0:00:32]} 39. e5 {[%emt 0:00:33]} Ng7 {[%emt 0:00:03]} 40. Ne4 {[%emt 0:05:46]} Re2 {[%emt 0:00:11]} 41. Nf6+ {[%emt 0:00:16]} Kh8 {[%emt 0:00:01]} 42. Rbb7 {[%emt 0:00:19]} Ne8 {[%emt 0:01:34]} 43. Rxf7 {[%emt 0:00:39]} Rxf7 {[%emt 0:00:04]} 44. Rxf7 {[%emt 0:00:03]} Rxe5 {[%emt 0:00:53]} 45. Rxh7# 1-0

[Event "7th Iberoamerican-ch 2019"]
[Site "Linares"]
[Date "2019.08.14"]
[Round "5.17"]
[White "Silva, Goncalo Nuno Neto Pi"]
[Black "Zambrana, Oswaldo"]
[Result "0-1"]
[ECO "B31"]
[WhiteElo "2085"]
[BlackElo "2440"]
[Annotator "NA"]
[PlyCount "118"]
[EventDate "2019.08.10"]
[EventType "swiss"]
[EventCountry "ESP"]
[SourceTitle "playchess.com"]
[Source "ChessBase"]
[SourceQuality "1"]
[TimeControl "5400+30"]

1. e4 {[%emt 0:01:21]} c5 {[%emt 0:00:02]} 2. Nf3 {[%emt 0:00:06]} Nc6 {[%emt 0:00:06]} 3. Bb5 {[%emt 0:00:10]} g6 {[%emt 0:00:09]} 4. O-O {[%emt 0:00:13]} Bg7 {[%emt 0:00:06]} 5. c3 {[%emt 0:00:38]} e5 {[%emt 0:00:30]} 6. Na3 {[%emt 0:03:29]} Nge7 {[%emt 0:00:33]} 7. Re1 {[%emt 0:02:41]} O-O {[%emt 0:00:20]} 8. Nc4 {[%emt 0:01:28]} d6 {[%emt 0:02:31]} 9. d3 {[%emt 0:05:39]} a6 {[%emt 0:01:24]} 10. Bxc6 {[%emt 0:00:10]} Nxc6 {[%emt 0:00:18]} 11. a4 {[%emt 0:02:05]} h6 {[%emt 0:00:39]} 12. d4 {[%emt 0:10:18]} cxd4 {[%emt 0:13:12]} 13. cxd4 {[%emt 0:00:25]} Bg4 {[%emt 0:01:01]} 14. dxe5 {[%emt 0:02:20]} dxe5 {[%emt 0:01:49]} 15. Be3 {[%emt 0:02:17]} Be6 {[%emt 0:13:02]} 16. Nb6 {[%emt 0:01:44]} Rb8 {[%emt 0:01:44]} 17. Bc5 {[%emt 0:03:54]} Re8 {[%emt 0:00:49]} 18. Ra3 {[%emt 0:09:31]} Nd4 {[%emt 0:10:12]} 19. a5 {[%emt 0:01:09]} Nxf3+ {[%emt 0:03:07]} 20. Qxf3 {[%emt 0:01:22]} Qd2 {[%emt 0:00:32]} 21. Rd1 {[%emt 0:05:23]} Qxb2 {[%emt 0:01:04]} 22. Raa1 {[%emt 0:03:18]} Rbd8 {[%emt 0:04:10]} 23. Rdb1 {[%emt 0:01:45]} Qd2 {[%emt 0:11:09]} 24. Be3 {[%emt 0:00:12]} Qd6 {[%emt 0:00:14]} 25. Na4 {[%emt 0:00:33]} Qe7 {[%emt 0:04:20]} 26. Nc5 {[%emt 0:03:54]} Bc8 {[%emt 0:00:08]} 27. Qe2 {[%emt 0:01:38]} Rd6 {[%emt 0:01:22]} 28. Qb2 {[%emt 0:02:03]} Rc6 {[%emt 0:01:16]} 29. Na4 {[%emt 0:02:43]} Qc7 {[%emt 0:07:39]} 30. Bb6 {[%emt 0:00:48]} Qb8 {[%emt 0:00:17]} 31. Be3 {[%emt 0:02:17]} Bf8 {[%emt 0:00:43]} 32. Nb6 {[%emt 0:00:13]} Be6 {[%emt 0:00:24]} 33. Rc1 {[%emt 0:00:54]} Rxc1+ {[%emt 0:05:12]} 34. Rxc1 {[%emt 0:01:00]} Rd8 {[%emt 0:00:01]} 35. h3 {[%emt 0:00:36]} Qd6 {[%emt 0:00:04]} 36. Bc5 {[%emt 0:00:46]} Qd2 {[%emt 0:00:31]} 37. Qxd2 {[%emt 0:00:38]} Rxd2 {[%emt 0:00:03]} 38. Bxf8 {[%emt 0:00:10]} Kxf8 {[%emt 0:00:04]} 39. Rc5 {[%emt 0:00:09]} Rd1+ {[%emt 0:00:59]} 40. Kh2 {[%emt 0:00:05]} Rb1 {[%emt 0:00:12]} 41. Rxe5 {[%emt 0:01:46]} Rb5 {[%emt 0:00:49]} 42. Rxb5 {[%emt 0:00:10]} axb5 {[%emt 0:00:02]} 43. Kg3 {[%emt 0:00:12]} Ke7 {[%emt 0:01:11]} 44. e5 {[%emt 0:00:25]} b4 {[%emt 0:01:27]} 45. Kf4 {[%emt 0:00:58]} b3 {[%emt 0:00:20]} 46. Na4 {[%emt 0:00:06]} Kd7 {[%emt 0:00:05]} 47. Ke3 {[%emt 0:01:09]} Kc6 {[%emt 0:00:05]} 48. Kd3 {[%emt 0:00:12]} Kb5 {[%emt 0:00:06]} 49. Nb2 {[%emt 0:00:27]} Kxa5 {[%emt 0:00:09]} 50. Kc3 {[%emt 0:00:05]} Kb5 {[%emt 0:00:37]} 51. Nd3 {[%emt 0:00:31]} Bc4 {[%emt 0:03:20]} 52. Nb2 {[%emt 0:00:35]} Bf1 {[%emt 0:00:07]} 53. g3 {[%emt 0:00:29]} Bxh3 {[%emt 0:00:13]} 54. Kxb3 {[%emt 0:01:33]} Kc5 {[%emt 0:00:27]} 55. Kc3 {[%emt 0:00:03]} Bf5 {[%emt 0:01:31]} 56. Nc4 {[%emt 0:00:40]} b5 {[%emt 0:01:22]} 57. Nd6 {[%emt 0:00:25]} b4+ {[%emt 0:00:07]} 58. Kb2 {[%emt 0:00:33]} Be6 {[%emt 0:00:20]} 59. f4 {[%emt 0:00:18]} h5 {[%emt 0:00:32]} 0-1

[Event "7th Iberoamerican-ch 2019"]
[Site "Linares"]
[Date "2019.08.14"]
[Round "5.20"]
[White "Larino Nieto, David"]
[Black "Moral Garcia, Serafin"]
[Result "1-0"]
[ECO "A00"]
[WhiteElo "2457"]
[BlackElo "2281"]
[Annotator "ChessBase"]
[PlyCount "125"]
[EventDate "2019.08.10"]
[EventType "swiss"]
[EventCountry "ESP"]
[SourceTitle "playchess.com"]
[Source "ChessBase"]
[SourceQuality "1"]
[TimeControl "5400+30"]

1. g3 {[%emt 0:00:00]} Nf6 {[%emt 0:00:02]} 2. Bg2 {[%emt 0:00:00]} g6 {[%emt 0:00:20]} 3. e4 {[%emt 0:00:00]} d6 {[%emt 0:00:37]} 4. d4 {[%emt 0:00:00]} Bg7 {[%emt 0:00:34]} 5. Nc3 {[%emt 0:00:00]} O-O {[%emt 0:00:49]} 6. h3 {[%emt 0:00:00]} c5 {[%emt 0:03:54]} 7. dxc5 {[%emt 0:00:22]} dxc5 {[%emt 0:00:39]} 8. Qxd8 {[%emt 0:00:02]} Rxd8 {[%emt 0:00:05]} 9. Be3 {[%emt 0:00:29]} Nfd7 {[%emt 0:04:24]} 10. Nge2 {[%emt 0:00:32]} Nc6 {[%emt 0:01:11]} 11. O-O-O {[%emt 0:00:03]} b6 {[%emt 0:02:22]} 12. e5 {[%emt 0:00:15]} Bb7 {[%emt 0:00:02]} 13. f4 {[%emt 0:00:08]} Nf8 {[%emt 0:03:14]} 14. h4 {[%emt 0:02:33]} h5 {[%emt 0:04:01]} 15. a3 {[%emt 0:01:17]} Ne6 {[%emt 0:02:02]} 16. b4 {[%emt 0:04:49]} cxb4 {[%emt 0:04:12]} 17. axb4 {[%emt 0:00:02]} Rab8 {[%emt 0:00:37]} 18. Rxd8+ {[%emt 0:00:59]} Ncxd8 {[%emt 0:02:24]} 19. Bd5 {[%emt 0:01:34]} Kf8 {[%emt 0:02:52]} 20. Kb2 {[%emt 0:00:19]} Nc7 {[%emt 0:04:31]} 21. Bxb7 {[%emt 0:00:10]} Rxb7 {[%emt 0:00:01]} 22. Nd4 {[%emt 0:00:31]} f6 {[%emt 0:02:14]} 23. exf6 {[%emt 0:00:02]} Bxf6 {[%emt 0:00:09]} 24. Kb3 {[%emt 0:00:16]} e5 {[%emt 0:03:06]} 25. fxe5 {[%emt 0:01:16]} Bxe5 {[%emt 0:00:02]} 26. Ne4 {[%emt 0:02:12]} Nd5 {[%emt 0:04:08]} 27. Bh6+ {[%emt 0:00:02]} Kg8 {[%emt 0:00:51]} 28. Nf3 {[%emt 0:00:26]} Nf6 {[%emt 0:05:37]} 29. Re1 {[%emt 0:11:11]} Nxe4 {[%emt 0:05:38]} 30. Rxe4 {[%emt 0:00:07]} Bf6 {[%emt 0:00:41]} 31. Re8+ {[%emt 0:00:41]} Kf7 {[%emt 0:00:18]} 32. Rf8+ {[%emt 0:00:15]} Ke6 {[%emt 0:00:41]} 33. Rxf6+ {[%emt 0:00:35]} Kxf6 {[%emt 0:00:01]} 34. Bg5+ {[%emt 0:00:02]} Kf5 {[%emt 0:02:05]} 35. Bxd8 {[%emt 0:00:02]} Rd7 {[%emt 0:00:54]} 36. Bg5 {[%emt 0:00:18]} Ke4 {[%emt 0:02:11]} 37. Ne1 {[%emt 0:02:16]} Rd5 {[%emt 0:03:17]} 38. Nd3 {[%emt 0:01:43]} a5 {[%emt 0:04:49]} 39. Nf4 {[%emt 0:01:56]} Rb5 {[%emt 0:00:04]} 40. c3 {[%emt 0:03:03]} axb4 {[%emt 0:00:17]} 41. c4 {[%emt 0:03:21]} Rf5 {[%emt 0:01:21]} 42. Kxb4 {[%emt 0:01:01]} Kf3 {[%emt 0:00:32]} 43. Nxg6 {[%emt 0:00:17]} Kxg3 {[%emt 0:00:07]} 44. Ne7 {[%emt 0:00:10]} Rf1 {[%emt 0:02:58]} 45. Nd5 {[%emt 0:00:08]} Rb1+ {[%emt 0:00:03]} 46. Kc3 {[%emt 0:00:26]} Kg4 {[%emt 0:02:05]} 47. Kc2 {[%emt 0:00:23]} Re1 {[%emt 0:00:29]} 48. Nxb6 {[%emt 0:01:49]} Kf5 {[%emt 0:00:08]} 49. Nd5 {[%emt 0:00:24]} Ke5 {[%emt 0:02:10]} 50. Kc3 {[%emt 0:00:20]} Rh1 {[%emt 0:00:56]} 51. Nf6 {[%emt 0:00:45]} Rh3+ {[%emt 0:00:20]} 52. Kb4 {[%emt 0:00:02]} Kd4 {[%emt 0:00:05]} 53. Nxh5 {[%emt 0:00:13]} Rh1 {[%emt 0:00:00]} 54. Bf6+ {[%emt 0:00:13]} Kd3 {[%emt 0:00:08]} 55. Nf4+ {[%emt 0:00:49]} Ke4 {[%emt 0:00:01]} 56. Nd5 {[%emt 0:00:20]} Kf5 {[%emt 0:00:32]} 57. Bg5 {[%emt 0:00:20]} Rh2 {[%emt 0:00:45]} 58. Kc5 {[%emt 0:00:07]} Ke6 {[%emt 0:00:06]} 59. Kc6 {[%emt 0:00:15]} Rh1 {[%emt 0:00:24]} 60. c5 {[%emt 0:00:10]} Ke5 {[%emt 0:00:17]} 61. Nb6 {[%emt 0:00:37]} Rh3 {[%emt 0:00:22]} 62. Kb7 {[%emt 0:01:57]} Rc3 {[%emt 0:00:03]} 63. Bf6+ {[%emt 0:00:20] Kd5} 1-0

[Event "7th Iberoamerican-ch 2019"]
[Site "Linares"]
[Date "2019.08.14"]
[Round "5.21"]
[White "Damaso, Rui"]
[Black "Forgas Moreno, Yaniela"]
[Result "1-0"]
[ECO "A80"]
[WhiteElo "2417"]
[BlackElo "2276"]
[Annotator "NA"]
[PlyCount "97"]
[EventDate "2019.08.10"]
[EventType "swiss"]
[EventCountry "ESP"]
[SourceTitle "playchess.com"]
[Source "ChessBase"]
[SourceQuality "1"]
[TimeControl "5400+30"]

1. d4 {[%emt 0:00:00]} f5 {[%emt 0:00:00]} 2. Nc3 {[%emt 0:01:16]} Nf6 {[%emt 0:00:00]} 3. Bg5 {[%emt 0:00:37]} d5 {[%emt 0:00:11]} 4. e3 {[%emt 0:01:16]} e6 {[%emt 0:01:30]} 5. Nf3 {[%emt 0:02:13]} Be7 {[%emt 0:00:22]} 6. Bd3 {[%emt 0:02:20]} O-O {[%emt 0:02:36]} 7. Ne2 {[%emt 0:02:20]} c5 {[%emt 0:04:53]} 8. c4 {[%emt 0:03:28]} Nc6 {[%emt 0:05:18]} 9. O-O {[%emt 0:13:21]} dxc4 {[%emt 0:02:21]} 10. Bxc4 {[%emt 0:01:06]} Na5 {[%emt 0:00:11]} 11. Bd3 {[%emt 0:04:23]} c4 {[%emt 0:02:40]} 12. Bc2 {[%emt 0:01:35]} b5 {[%emt 0:02:53]} 13. b3 {[%emt 0:05:23]} Bb7 {[%emt 0:04:07]} 14. Nf4 {[%emt 0:04:56]} Bd5 {[%emt 0:06:27]} 15. Ne5 {[%emt 0:02:17]} c3 {[%emt 0:05:29]} 16. Qd3 {[%emt 0:10:36]} b4 {[%emt 0:03:14]} 17. Qb5 {[%emt 0:04:59]} a6 {[%emt 0:07:08]} 18. Qa4 {[%emt 0:02:21]} Ra7 {[%emt 0:01:01]} 19. a3 {[%emt 0:01:07]} Rb7 {[%emt 0:04:49]} 20. axb4 {[%emt 0:01:48]} Bxb4 {[%emt 0:01:52]} 21. Nfd3 {[%emt 0:00:19]} Qd6 {[%emt 0:02:29]} 22. Nxb4 {[%emt 0:00:38]} Nxb3 {[%emt 0:00:26]} 23. Nxd5 {[%emt 0:18:25]} Nxa1 {[%emt 0:00:05]} 24. Nxc3 {[%emt 0:00:48]} Nxc2 {[%emt 0:00:22]} 25. Qxc2 {[%emt 0:00:05]} Rc8 {[%emt 0:04:17]} 26. Bxf6 {[%emt 0:00:33]} gxf6 {[%emt 0:00:48]} 27. Nd3 {[%emt 0:00:05]} Qa3 {[%emt 0:04:03]} 28. Nc5 {[%emt 0:00:25]} Rb2 {[%emt 0:00:28]} 29. Qc1 {[%emt 0:00:15]} a5 {[%emt 0:02:21]} 30. N3a4 {[%emt 0:01:21]} Ra2 {[%emt 0:01:56]} 31. Qc4 {[%emt 0:00:17]} Re8 {[%emt 0:02:44]} 32. g3 {[%emt 0:01:39]} Kf7 {[%emt 0:03:22]} 33. Qb5 {[%emt 0:01:20]} Qb4 {[%emt 0:00:06]} 34. Qc6 {[%emt 0:00:30]} f4 {[%emt 0:03:50]} 35. d5 {[%emt 0:01:46]} e5 {[%emt 0:01:32]} 36. d6 {[%emt 0:00:52]} Rd2 {[%emt 0:01:38]} 37. exf4 {[%emt 0:02:37]} exf4 {[%emt 0:01:20]} 38. Qd7+ {[%emt 0:01:26]} Kf8 {[%emt 0:00:14]} 39. Qxh7 {[%emt 0:01:56]} Rxd6 {[%emt 0:00:16]} 40. Nd7+ {[%emt 0:00:16]} Rxd7 {[%emt 0:00:06]} 41. Qxd7 {[%emt 0:00:03]} f3 {[%emt 0:00:10]} 42. Qc6 {[%emt 0:00:23]} Kf7 {[%emt 0:00:24]} 43. Nc3 {[%emt 0:00:48]} Qg4 {[%emt 0:01:10]} 44. Nd5 {[%emt 0:00:27]} Qf5 {[%emt 0:02:45]} 45. Nf4 {[%emt 0:01:12]} Qe4 {[%emt 0:01:38]} 46. Qc7+ {[%emt 0:00:09]} Re7 {[%emt 0:00:16]} 47. Qxa5 {[%emt 0:00:06]} Re5 {[%emt 0:01:54]} 48. Qd2 {[%emt 0:00:35]} Kg7 {[%emt 0:02:41]} 49. h4 {[%emt 0:00:11]} 1-0

[Event "7th Iberoamerican-ch 2019"]
[Site "Linares"]
[Date "2019.08.14"]
[Round "5.22"]
[White "Almagro Mazariegos, Sebastian"]
[Black "Cori T., Deysi"]
[Result "1-0"]
[ECO "B46"]
[WhiteElo "2268"]
[BlackElo "2400"]
[Annotator "NA"]
[PlyCount "81"]
[EventDate "2019.08.10"]
[EventType "swiss"]
[EventCountry "ESP"]
[SourceTitle "playchess.com"]
[Source "ChessBase"]
[SourceQuality "1"]
[TimeControl "5400+30"]

1. e4 {[%emt 0:00:00]} c5 {[%emt 0:00:29]} 2. Nf3 {[%emt 0:00:00]} e6 {[%emt 0:00:15]} 3. d4 {[%emt 0:00:00]} cxd4 {[%emt 0:00:03]} 4. Nxd4 {[%emt 0:00:08]} Nc6 {[%emt 0:00:05]} 5. Nc3 {[%emt 0:00:56]} a6 {[%emt 0:00:25]} 6. Nxc6 {[%emt 0:01:13]} bxc6 {[%emt 0:00:05]} 7. e5 {[%emt 0:02:51]} Qa5 {[%emt 0:10:19]} 8. f4 {[%emt 0:01:48]} Bb7 {[%emt 0:01:23]} 9. Bd3 {[%emt 0:02:43]} f5 {[%emt 0:06:41]} 10. Bd2 {[%emt 0:07:16]} Qc7 {[%emt 0:07:24]} 11. Qe2 {[%emt 0:01:04]} Ne7 {[%emt 0:03:09]} 12. g4 {[%emt 0:05:22]} fxg4 {[%emt 0:08:03]} 13. Qxg4 {[%emt 0:01:26]} c5 {[%emt 0:00:06]} 14. Rg1 {[%emt 0:12:40]} O-O-O {[%emt 0:04:44]} 15. Qe2 {[%emt 0:00:28]} Nc6 {[%emt 0:02:31]} 16. O-O-O {[%emt 0:10:16]} Nd4 {[%emt 0:04:02]} 17. Qf1 {[%emt 0:00:22]} Qb6 {[%emt 0:01:30]} 18. Be3 {[%emt 0:07:17]} g6 {[%emt 0:03:57]} 19. Be4 {[%emt 0:04:13]} d5 {[%emt 0:11:03]} 20. exd6 {[%emt 0:01:03]} Bxd6 {[%emt 0:00:02]} 21. Qc4 {[%emt 0:07:45]} Kb8 {[%emt 0:01:31]} 22. Bxb7 {[%emt 0:08:17]} Qxb7 {[%emt 0:01:31]} 23. Kb1 {[%emt 0:00:33]} Rhf8 {[%emt 0:02:50]} 24. Rgf1 {[%emt 0:02:11]} Rc8 {[%emt 0:04:53]} 25. Bxd4 {[%emt 0:03:01]} cxd4 {[%emt 0:00:03]} 26. Qxd4 {[%emt 0:00:10]} Bc7 {[%emt 0:02:42]} 27. Qe3 {[%emt 0:01:12]} Qc6 {[%emt 0:00:57]} 28. a3 {[%emt 0:03:01]} Ka8 {[%emt 0:05:34]} 29. h3 {[%emt 0:03:37]} Rb8 {[%emt 0:01:27]} 30. Rfe1 {[%emt 0:01:12]} Rb6 {[%emt 0:03:10]} 31. Rd4 {[%emt 0:02:04]} Rf6 {[%emt 0:11:24]} 32. Qd3 {[%emt 0:02:47]} Rxf4 {[%emt 0:01:31]} 33. Rxf4 {[%emt 0:01:19]} Bxf4 {[%emt 0:00:02]} 34. Re4 {[%emt 0:00:46]} Bc7 {[%emt 0:00:11]} 35. Rc4 {[%emt 0:00:24]} Qb7 {[%emt 0:00:32]} 36. Na4 {[%emt 0:01:29]} Rb5 {[%emt 0:01:59]} 37. b4 {[%emt 0:03:42]} Rf5 {[%emt 0:00:51]} 38. Qd7 {[%emt 0:02:06]} Rf1+ {[%emt 0:00:20]} 39. Ka2 {[%emt 0:00:02]} Bb8 {[%emt 0:00:57]} 40. Qxe6 {[%emt 0:00:53]} Rf3 {[%emt 0:00:34]} 41. Nc5 {[%emt 0:01:20]} 1-0